bitfinex-derivatives/quotes_BTCF0:USTF0_20250315
["timestamp","ask_amount","ask_price","bid_price","bid_amount"]
[1742010054592,0.00017742,84514.0,84513.0,1.2721226]
[1742010055096,0.00017742,84514.0,84513.0,1.3421226]
[1742010055594,0.00017742,84514.0,84513.0,1.3321226]
[1742010055991,0.00017742,84514.0,84513.0,0.5521226]
[1742010056595,0.11849862,84514.0,84513.0,0.8021226]
[1742010056895,0.11849862,84514.0,84513.0,0.8221226]
[1742010057482,0.00017742,84514.0,84513.0,1.3521226]
[1742010057689,0.00017742,84514.0,84513.0,1.3221226]
[1742010059291,0.00017742,84514.0,84513.0,1.3321226]
[1742010059595,0.00017742,84514.0,84513.0,1.1021226]
[1742010059795,0.00017742,84514.0,84513.0,1.1321226]
[1742010060181,0.00017742,84514.0,84513.0,1.0821226]
[1742010060495,0.00017742,84514.0,84513.0,1.1621226]
[1742010060799,0.00017742,84514.0,84513.0,0.6121226]
[1742010061099,0.00017742,84514.0,84513.0,1.1121226]
[1742010061488,0.00017742,84514.0,84513.0,1.1021226]
[1742010061990,0.00017742,84514.0,84513.0,1.1621226]
[1742010063086,0.00017742,84514.0,84513.0,1.1121226]
[1742010063995,0.00017742,84514.0,84513.0,1.1421226]
[1742010064597,0.00017742,84514.0,84513.0,1.1021226]
[1742010065292,0.00017742,84514.0,84513.0,0.6121226]
[1742010065591,0.00017742,84514.0,84513.0,1.0921226]
[1742010065988,0.00017742,84514.0,84513.0,0.6121226]
[1742010066188,0.00017742,84514.0,84513.0,1.1321226]
[1742010066598,0.00017742,84514.0,84513.0,1.1221226]
[1742010066792,0.00017742,84514.0,84513.0,1.1121226]
[1742010067293,0.05770399,84514.0,84513.0,0.6121226]
[1742010067493,0.05770399,84514.0,84513.0,1.1421226]
[1742010067691,0.05770399,84514.0,84513.0,1.0821226]
[1742010067897,0.05770399,84514.0,84513.0,1.1421226]
[1742010068295,0.05770399,84514.0,84513.0,0.6121226]
[1742010068495,0.05770399,84514.0,84513.0,1.1221226]
[1742010068691,0.05770399,84514.0,84513.0,0.6121226]
[1742010069090,0.05770399,84514.0,84513.0,1.1121226]
[1742010069498,0.05770399,84514.0,84513.0,1.1021226]
[1742010069700,0.05770399,84514.0,84513.0,1.1721226]
[1742010069899,0.05770399,84514.0,84513.0,0.6121226]
[1742010070204,0.05770399,84514.0,84513.0,1.1421226]
[1742010071203,0.05770399,84514.0,84513.0,1.1221226]
[1742010071398,0.05770399,84514.0,84513.0,1.0821226]
[1742010072193,0.05770399,84514.0,84513.0,1.1321226]
[1742010073203,0.05759868,84514.0,84513.0,1.1221226]
[1742010073398,0.05759868,84514.0,84513.0,1.0821226]
[1742010073595,0.05759868,84514.0,84513.0,1.1221226]
[1742010073999,0.05759868,84514.0,84513.0,0.6121226]
[1742010074195,0.05759868,84514.0,84513.0,1.1021226]
[1742010074804,0.05759868,84514.0,84513.0,1.1121226]
[1742010075307,0.05759868,84514.0,84513.0,1.1221226]
[1742010075507,0.05759868,84514.0,84513.0,1.1121226]
[1742010075808,0.05759868,84514.0,84513.0,1.1021226]
[1742010076306,0.05759868,84514.0,84513.0,0.6121226]
[1742010076511,0.05759868,84514.0,84513.0,1.0821226]
[1742010076692,0.05759868,84514.0,84513.0,0.6121226]
[1742010076893,0.05759868,84514.0,84513.0,1.1121226]
[1742010077100,0.05759868,84514.0,84513.0,0.6121226]
[1742010077405,0.05759868,84514.0,84513.0,1.1521226]
[1742010077804,0.05759868,84514.0,84513.0,1.1721226]
[1742010078107,0.05759868,84514.0,84513.0,1.1321226]
[1742010079013,7.211e-05,84514.0,84513.0,0.1183226]
[1742010079197,0.1774874,84512.0,84511.0,0.059162]
[1742010080012,0.2483874,84512.0,84511.0,0.059162]
[1742010080195,0.130062,84512.0,84511.0,0.299162]
[1742010080397,0.130062,84512.0,84511.0,0.319162]
[1742010081005,0.130062,84512.0,84511.0,0.339162]
[1742010081211,0.130062,84512.0,84511.0,0.059162]
[1742010081609,0.130062,84512.0,84511.0,0.329162]
[1742010081907,0.130062,84512.0,84511.0,0.059162]
[1742010082502,0.130062,84512.0,84511.0,0.339162]
[1742010082709,0.130062,84512.0,84511.0,0.059162]
[1742010083004,0.130062,84512.0,84511.0,0.299162]
[1742010083204,0.18758857,84512.0,84511.0,0.299162]
[1742010083597,0.18758857,84512.0,84511.0,0.059162]
[1742010083796,0.18758857,84512.0,84511.0,0.339162]
[1742010084803,0.18758857,84512.0,84511.0,0.059162]
[1742010085009,0.18758857,84512.0,84511.0,0.329162]
[1742010085514,0.18758857,84512.0,84511.0,0.319162]
[1742010085715,0.18758857,84512.0,84511.0,0.059162]
[1742010085904,0.18758857,84512.0,84511.0,0.289162]
[1742010086103,0.18758857,84512.0,84511.0,0.309162]
[1742010086513,0.18758857,84512.0,84511.0,0.059162]
[1742010087112,0.18758857,84512.0,84511.0,0.289162]
[1742010087302,0.18758857,84512.0,84511.0,0.059162]
[1742010088010,0.1183268,84510.0,84509.0,0.0591634]
[1742010088513,0.1881268,84510.0,84509.0,0.3091634]
[1742010088905,0.1881268,84510.0,84509.0,0.2891634]
[1742010089402,0.1881268,84510.0,84509.0,0.3391634]
[1742010089599,0.1881268,84510.0,84509.0,0.2891634]
[1742010089803,0.1881268,84510.0,84509.0,0.3191634]
[1742010090104,0.24565337,84510.0,84509.0,0.3191634]
[1742010090504,0.24565337,84510.0,84509.0,0.0591634]
[1742010090907,0.24565337,84510.0,84509.0,0.3391634]
[1742010091101,0.24565337,84510.0,84509.0,0.0591634]
[1742010091411,0.24565337,84510.0,84509.0,0.3291634]
[1742010091816,0.24565337,84510.0,84509.0,0.3191634]
[1742010092409,0.24565337,84510.0,84509.0,0.0591634]
[1742010092614,0.24565337,84510.0,84509.0,0.3091634]
[1742010092809,0.24565337,84510.0,84509.0,0.3491634]
[1742010093323,0.24565337,84510.0,84509.0,0.0591634]
[1742010093516,0.24565337,84510.0,84509.0,0.3191634]
[1742010094307,0.24565337,84510.0,84509.0,0.6275634]
[1742010094505,0.24565337,84510.0,84509.0,0.1345634]
[1742010094705,0.24565337,84510.0,84509.0,0.6345634]
[1742010095006,0.24565337,84510.0,84509.0,0.6645634]
[1742010095413,0.24565337,84510.0,84509.0,0.9145634]
[1742010095618,0.24565337,84510.0,84509.0,0.3845634]
[1742010096217,0.24565337,84510.0,84509.0,0.3945634]
[1742010096809,0.24565337,84510.0,84509.0,0.4145634]
[1742010097311,0.24565337,84510.0,84509.0,0.1345634]
[1742010097708,0.24565337,84510.0,84509.0,0.4045634]
[1742010098605,0.24565337,84510.0,84509.0,0.4145634]
[1742010098811,0.24565337,84510.0,84509.0,0.1345634]
[1742010099009,0.24565337,84510.0,84509.0,0.4045634]
[1742010099811,0.24565337,84510.0,84509.0,0.4245634]
[1742010100917,0.24565337,84510.0,84509.0,0.1345634]
[1742010101526,0.24565337,84510.0,84509.0,0.9145634]
[1742010102124,0.24565337,84510.0,84509.0,0.8945634]
[1742010102317,0.24565337,84510.0,84509.0,0.3745634]
[1742010102519,0.24565337,84510.0,84509.0,0.1345634]
[1742010102713,0.24565337,84510.0,84509.0,0.3491634]
[1742010103722,0.24565337,84510.0,84509.0,0.0591634]
[1742010103922,0.60645337,84510.0,84509.0,0.0591634]
[1742010104125,0.1774958,84508.0,84507.0,0.11833]
[1742010104325,0.1774958,84508.0,84507.0,0.38833]
[1742010104722,0.1774958,84508.0,84507.0,0.36833]
[1742010104917,0.1774958,84508.0,84507.0,0.11833]
[1742010105120,0.1774958,84508.0,84505.0,0.11843817]
[1742010105121,0.1183324,84506.0,84505.0,0.11843817]
[1742010105315,0.1183324,84506.0,84505.0,0.12843817]
[1742010105520,0.1991324,84506.0,84505.0,0.11843817]
[1742010106723,0.1991324,84506.0,84505.0,0.49677087]
[1742010106927,0.1991324,84506.0,84505.0,0.57837087]
[1742010108420,0.1991324,84506.0,84505.0,0.81837087]
[1742010109333,0.1991324,84506.0,84505.0,0.57837087]
[1742010110027,0.25665897,84506.0,84505.0,0.57837087]
[1742010116121,0.25665897,84506.0,84505.0,0.48677087]
[1742010116329,0.25665897,84506.0,84505.0,0.23677087]
[1742010116628,0.25665897,84506.0,84505.0,0.51677087]
[1742010116822,0.25665897,84506.0,84505.0,0.58847087]
[1742010119135,0.25665897,84506.0,84505.0,0.54847087]
[1742010120731,0.25665897,84506.0,84505.0,0.81847087]
[1742010121234,0.25665897,84506.0,84505.0,0.67927087]
[1742010121531,0.25665897,84506.0,84505.0,0.90927087]
[1742010121834,0.25665897,84506.0,84505.0,1.13927087]
[1742010122135,0.25665897,84506.0,84505.0,0.77847087]
[1742010124231,0.13832657,84506.0,84505.0,1.04847087]
[1742010128241,0.09922657,84506.0,84505.0,1.04847087]
[1742010129641,0.05752657,84506.0,84505.0,1.04847087]
[1742010129845,0.08782657,84506.0,84505.0,1.04847087]
[1742010131048,0.05752657,84506.0,84505.0,1.04847087]
[1742010131248,0.05752657,84506.0,84505.0,1.05847087]
[1742010135747,0.09062657,84506.0,84505.0,1.05847087]
[1742010136046,0.17151702,84519.0,84517.0,0.118317]
[1742010136247,0.0331,84518.0,84517.0,1.249117]
[1742010136550,0.0322,84526.0,84525.0,0.1183058]
[1742010136742,0.48928777,84529.0,84528.0,0.1183016]
[1742010137142,0.48928777,84529.0,84528.0,0.4200016]
[1742010137547,0.48928777,84529.0,84528.0,0.9500016]
[1742010137746,0.48928777,84529.0,84528.0,0.1800016]
[1742010137943,0.48928777,84529.0,84528.0,0.9300016]
[1742010138140,0.48928777,84529.0,84528.0,0.1800016]
[1742010138350,0.60758797,84529.0,84528.0,0.1800016]
[1742010139144,0.60758797,84529.0,84528.0,0.4100016]
[1742010139336,0.60758797,84529.0,84528.0,0.1800016]
[1742010140046,0.1183002,84529.0,84528.0,0.1800016]
[1742010141142,0.1183002,84529.0,84528.0,0.19269288]
[1742010141646,0.1183002,84529.0,84528.0,0.16189288]
[1742010142438,0.1511002,84529.0,84528.0,0.16189288]
[1742010142644,0.1183002,84529.0,84528.0,0.44189288]
[1742010142839,0.0301,84530.0,84528.0,0.47479288]
[1742010143049,0.0301,84530.0,84529.0,0.1183002]
[1742010143550,0.0301,84530.0,84529.0,0.4612002]
[1742010143852,0.21239324,84531.0,84530.0,0.1182988]
[1742010144038,0.21239324,84531.0,84530.0,0.8983988]
[1742010144239,0.21239324,84531.0,84530.0,0.9483988]
[1742010144639,0.21239324,84531.0,84530.0,0.4283988]
[1742010145054,0.21239324,84531.0,84530.0,0.9383988]
[1742010145254,0.21239324,84531.0,84530.0,0.4283988]
[1742010145643,0.33069064,84531.0,84530.0,0.1883988]
[1742010145858,0.33069064,84531.0,84530.0,0.4383988]
[1742010146055,0.33069064,84531.0,84530.0,0.1883988]
[1742010146353,0.21239324,84531.0,84530.0,0.1883988]
[1742010146854,0.21239324,84531.0,84530.0,0.4183988]
[1742010147049,0.21239324,84531.0,84530.0,0.9483988]
[1742010147255,0.21239324,84531.0,84530.0,0.9183988]
[1742010147447,0.21239324,84531.0,84530.0,0.4383988]
[1742010147654,0.21239324,84531.0,84530.0,0.9283988]
[1742010147853,0.1182942,84534.0,84530.0,0.9283988]
[1742010147854,0.0591467,84534.0,84533.0,0.1182932]
[1742010148054,0.2084399,84534.0,84533.0,0.3682932]
[1742010148452,0.2084399,84534.0,84533.0,0.3882932]
[1742010148649,0.2084399,84534.0,84533.0,0.1182932]
[1742010148845,0.2084399,84534.0,84533.0,0.3682932]
[1742010149258,0.2401399,84534.0,84533.0,0.3482932]
[1742010149443,0.2401399,84534.0,84533.0,0.4082932]
[1742010149649,0.2401399,84534.0,84533.0,0.1182932]
[1742010149845,0.2401399,84534.0,84533.0,0.3482932]
[1742010150861,0.2401399,84534.0,84533.0,0.3682932]
[1742010151246,0.2401399,84534.0,84533.0,0.3882932]
[1742010151461,0.2401399,84534.0,84533.0,0.1182932]
[1742010151761,0.2401399,84534.0,84533.0,0.3907932]
[1742010152252,0.2976585,84534.0,84533.0,0.3907932]
[1742010152653,0.2976585,84534.0,84533.0,0.3807932]
[1742010152953,0.2976585,84534.0,84533.0,0.4307932]
[1742010153550,0.2976585,84534.0,84533.0,0.3907932]
[1742010153751,0.2976585,84534.0,84533.0,0.1507932]
[1742010153953,0.2976585,84534.0,84533.0,0.4207932]
[1742010154450,0.2976585,84534.0,84533.0,0.4307932]
[1742010155262,0.2976585,84534.0,84533.0,0.4007932]
[1742010155656,0.1793653,84534.0,84533.0,0.1507932]
[1742010155860,0.1793653,84534.0,84533.0,0.4307932]
[1742010156061,0.1793653,84534.0,84533.0,0.1507932]
[1742010156251,0.1793653,84534.0,84533.0,0.4107932]
[1742010156452,0.1793653,84534.0,84533.0,0.1507932]
[1742010156762,0.1793653,84534.0,84533.0,0.4207932]
[1742010157151,0.1793653,84534.0,84533.0,0.3907932]
[1742010157552,0.1793653,84534.0,84533.0,0.4007932]
[1742010157952,0.1793653,84534.0,84533.0,0.4107932]
[1742010158161,0.1793653,84534.0,84533.0,0.1507932]
[1742010158465,0.1793653,84534.0,84533.0,0.1182932]
[1742010158862,0.1793653,84534.0,84533.0,0.3482932]
[1742010159258,0.1793653,84534.0,84533.0,0.4104932]
[1742010159455,0.1793653,84534.0,84533.0,0.3904932]
[1742010159656,0.1793653,84534.0,84533.0,0.4304932]
[1742010159950,0.1793653,84534.0,84533.0,0.4104932]
[1742010160164,0.1793653,84534.0,84533.0,0.1504932]
[1742010160461,0.1793653,84534.0,84533.0,0.3904932]
[1742010160856,0.1793653,84534.0,84533.0,0.3804932]
[1742010161056,0.1793653,84534.0,84533.0,0.4104932]
[1742010161255,0.1793653,84534.0,84533.0,0.1504932]
[1742010161452,0.1793653,84534.0,84533.0,0.3904932]
[1742010161666,0.1793653,84534.0,84533.0,0.4004932]
[1742010161857,0.1793653,84534.0,84533.0,0.3904932]
[1742010162055,0.1793653,84534.0,84533.0,0.1504932]
[1742010162255,0.1793653,84534.0,84533.0,0.4204932]
[1742010162465,0.1793653,84534.0,84533.0,0.4404932]
[1742010163467,0.1793653,84534.0,84533.0,0.3904932]
[1742010163869,0.1793653,84534.0,84533.0,0.1504932]
[1742010164070,0.1793653,84534.0,84533.0,0.1182932]
[1742010164368,0.1183002,84529.0,84522.0,0.00017742]
[1742010164573,0.1183086,84524.0,84523.0,0.1183083]
[1742010164872,0.1183086,84524.0,84523.0,0.3983083]
[1742010165171,0.1837086,84524.0,84523.0,0.4442083]
[1742010165357,0.1837086,84524.0,84523.0,0.4942083]
[1742010165760,0.1837086,84524.0,84523.0,0.4542083]
[1742010166070,0.1837086,84524.0,84523.0,0.4742083]
[1742010166256,0.1837086,84524.0,84523.0,0.4942083]
[1742010166861,0.1837086,84524.0,84523.0,0.2142083]
[1742010167266,0.1837086,84524.0,84523.0,0.4742083]
[1742010167867,0.1837086,84524.0,84523.0,0.2142083]
[1742010168067,0.1837086,84524.0,84523.0,0.5042083]
[1742010168467,0.1837086,84524.0,84523.0,0.2142083]
[1742010168664,0.1837086,84524.0,84523.0,0.4542083]
[1742010168870,0.1837086,84524.0,84523.0,0.4842083]
[1742010169064,0.1837086,84524.0,84523.0,0.4742083]
[1742010169267,0.1837086,84524.0,84523.0,0.4942083]
[1742010169577,0.1837086,84524.0,84523.0,0.4842083]
[1742010170175,0.1837086,84524.0,84523.0,0.4642083]
[1742010170176,0.2412272,84524.0,84523.0,0.4642083]
[1742010170573,0.2412272,84524.0,84523.0,0.4942083]
[1742010170770,0.2412272,84524.0,84523.0,0.2142083]
[1742010170974,0.2412272,84524.0,84523.0,0.4942083]
[1742010171169,0.2412272,84524.0,84523.0,0.4442083]
[1742010171568,0.2412272,84524.0,84523.0,0.4842083]
[1742010171875,0.2412272,84524.0,84523.0,0.4542083]
[1742010172370,0.2412272,84524.0,84523.0,0.2142083]
[1742010172573,0.2412272,84524.0,84523.0,0.4842083]
[1742010172966,0.2412272,84524.0,84523.0,0.2142083]
[1742010173172,0.2412272,84524.0,84523.0,0.4542083]
[1742010174378,0.2412272,84524.0,84523.0,0.2142083]
[1742010174579,0.0247169,84524.0,84523.0,1.2550083]
[1742010174773,0.2476013,84533.0,84532.0,0.118296]
[1742010174968,0.2476013,84533.0,84532.0,0.918296]
[1742010175278,0.17211703,84543.0,84536.0,0.1182904]
[1742010175470,0.1514826,84542.0,84538.0,0.4790876]
[1742010175665,0.1182837,84541.0,84538.0,0.4790876]
[1742010175880,0.1509837,84541.0,84538.0,1.3044876]
[1742010176173,0.0327,84541.0,84538.0,1.3044876]
[1742010177565,0.0327,84541.0,84538.0,1.0644876]
[1742010177772,0.0327,84541.0,84538.0,1.3444876]
[1742010178367,0.0327,84541.0,84538.0,0.5444876]
[1742010178982,0.40126659,84539.0,84538.0,0.7190876]
[1742010179174,0.40126659,84539.0,84538.0,0.4790876]
[1742010179486,0.1182862,84539.0,84538.0,0.4790876]
[1742010180681,0.1182862,84539.0,84538.0,0.7390876]
[1742010181190,0.1182862,84539.0,84538.0,0.4790876]
[1742010182277,0.1182862,84539.0,84538.0,0.7190876]
[1742010182573,0.1182862,84539.0,84538.0,0.4790876]
[1742010184174,0.1182862,84539.0,84538.0,0.7490876]
[1742010184478,0.1182862,84539.0,84538.0,1.0119876]
[1742010184675,0.1509848,84541.0,84540.0,0.1182848]
[1742010184676,0.1509834,84541.0,84540.0,0.1182848]
[1742010184878,0.1509834,84541.0,84540.0,0.8682848]
[1742010185378,0.1509834,84541.0,84540.0,0.9082848]
[1742010185885,0.1509834,84541.0,84540.0,0.3682848]
[1742010186178,0.1509834,84541.0,84540.0,0.6782848]
[1742010186383,0.1509834,84541.0,84540.0,0.68063618]
[1742010186579,0.1509834,84541.0,84540.0,0.13063618]
[1742010186776,0.1509834,84541.0,84540.0,0.85063618]
[1742010186976,0.1509834,84541.0,84540.0,0.62063618]
[1742010187178,0.1509834,84541.0,84540.0,0.38063618]
[1742010187683,0.1509834,84541.0,84540.0,0.37063618]
[1742010187885,0.1509834,84541.0,84540.0,0.36063618]
[1742010188478,0.1509834,84541.0,84540.0,0.47583618]
[1742010188874,0.1509834,84541.0,84540.0,0.74583618]
[1742010189072,0.1509834,84541.0,84540.0,0.98583618]
[1742010189377,0.1835834,84541.0,84540.0,0.99583618]
[1742010189776,0.1835834,84541.0,84540.0,1.02583618]
[1742010189974,0.1835834,84541.0,84540.0,0.47583618]
[1742010190176,0.1835834,84541.0,84540.0,0.98583618]
[1742010190588,0.24109771,84541.0,84540.0,0.19583618]
[1742010190896,0.24109771,84541.0,84540.0,0.72583618]
[1742010191083,0.24109771,84541.0,84540.0,0.98583618]
[1742010191290,0.24109771,84541.0,84540.0,0.19583618]
[1742010191488,0.24109771,84541.0,84540.0,0.92583618]
[1742010191689,0.24109771,84541.0,84540.0,0.93583618]
[1742010192078,0.24109771,84541.0,84540.0,0.66583618]
[1742010192286,0.12281431,84541.0,84540.0,0.89583618]
[1742010192484,0.24109771,84541.0,84540.0,0.89583618]
[1742010192679,0.24109771,84541.0,84540.0,0.94583618]
[1742010193083,0.24109771,84541.0,84540.0,0.69583618]
[1742010193278,0.24109771,84541.0,84540.0,0.19583618]
[1742010193892,0.24109771,84541.0,84540.0,0.43583618]
[1742010194289,0.24109771,84541.0,84540.0,0.46583618]
[1742010195496,0.24109771,84541.0,84540.0,0.43583618]
[1742010195683,0.24109771,84541.0,84540.0,0.44583618]
[1742010197589,0.24109771,84541.0,84540.0,0.19583618]
[1742010197785,0.24109771,84541.0,84540.0,0.42583618]
[1742010198493,0.24109771,84541.0,84540.0,0.47583618]
[1742010198885,0.24109771,84541.0,84540.0,0.19583618]
[1742010199078,0.24109771,84541.0,84540.0,0.47583618]
[1742010199276,0.24109771,84541.0,84540.0,0.45583618]
[1742010199692,0.24109771,84541.0,84540.0,0.46583618]
[1742010200190,0.24109771,84541.0,84540.0,0.48583618]
[1742010200490,0.24109771,84541.0,84540.0,0.19583618]
[1742010200991,0.24109771,84541.0,84540.0,0.42583618]
[1742010201390,0.24109771,84541.0,84540.0,0.19583618]
[1742010201792,0.24109771,84541.0,84540.0,0.43583618]
[1742010202395,0.24109771,84541.0,84540.0,0.48583618]
[1742010202798,0.24109771,84541.0,84540.0,0.43583618]
[1742010203193,0.24109771,84541.0,84540.0,0.45583618]
[1742010203893,0.24109771,84541.0,84540.0,0.47583618]
[1742010204994,0.24109771,84541.0,84540.0,0.20934234]
[1742010205299,0.24109771,84541.0,84540.0,0.48934234]
[1742010205690,0.24109771,84541.0,84540.0,0.43934234]
[1742010206089,0.24109771,84541.0,84540.0,0.45934234]
[1742010206291,0.24109771,84541.0,84540.0,0.20934234]
[1742010206491,0.24109771,84541.0,84540.0,0.45934234]
[1742010207095,0.24109771,84541.0,84540.0,0.47934234]
[1742010207297,0.24109771,84541.0,84540.0,0.48934234]
[1742010207497,0.24109771,84541.0,84540.0,0.49934234]
[1742010208897,0.24109771,84541.0,84540.0,0.46934234]
[1742010209591,0.24109771,84541.0,84540.0,0.47934234]
[1742010210704,0.24109771,84541.0,84540.0,0.45934234]
[1742010211202,0.24109771,84541.0,84540.0,0.43934234]
[1742010211404,0.24109771,84541.0,84540.0,0.44934234]
[1742010211704,0.24109771,84541.0,84540.0,0.20934234]
[1742010211902,0.48109771,84541.0,84540.0,0.01350616]
[1742010212095,0.48109771,84541.0,84522.0,0.00017742]
[1742010212096,0.1183086,84523.0,84522.0,0.00017742]
[1742010212296,0.4791086,84523.0,84522.0,0.00017742]
[1742010212795,0.5732086,84523.0,84522.0,0.00017742]
[1742010213305,0.5732086,84523.0,84513.0,0.2830832]
[1742010213306,0.1183142,84519.0,84518.0,0.16551625]
[1742010213605,0.1183296,84508.0,84507.0,0.35376423]
[1742010213899,0.1183338,84505.0,84504.0,0.35376423]
[1742010214300,0.3983338,84505.0,84504.0,0.35376423]
[1742010214506,0.0591704,84500.0,84496.0,0.42078288]
[1742010214698,0.118345,84497.0,84496.0,0.42078288]
[1742010216001,0.118345,84497.0,84496.0,0.69078288]
[1742010216192,0.118345,84497.0,84496.0,0.65078288]
[1742010216391,0.118345,84497.0,84496.0,0.71078288]
[1742010217003,0.118345,84497.0,84496.0,0.69078288]
[1742010217502,0.118345,84497.0,84496.0,0.42078288]
[1742010217700,0.118345,84497.0,84496.0,0.66078288]
[1742010217905,0.118345,84497.0,84496.0,0.42078288]
[1742010218105,0.17585931,84497.0,84496.0,0.24017742]
[1742010218309,0.17585931,84497.0,84496.0,0.00017742]
[1742010218606,0.17585931,84497.0,84496.0,0.28017742]
[1742010218806,0.17585931,84497.0,84496.0,0.00017742]
[1742010219504,0.17585931,84497.0,84496.0,0.24017742]
[1742010219706,0.17585931,84497.0,84496.0,0.00017742]
[1742010220001,0.1183506,84493.0,84492.0,0.0332]
[1742010220496,0.1183506,84493.0,84492.0,0.2632]
[1742010221097,0.1183506,84493.0,84492.0,0.0332]
[1742010221299,0.4791506,84493.0,84492.0,0.0332]
[1742010221892,0.4791506,84493.0,84492.0,0.3132]
[1742010222604,0.1183506,84493.0,84492.0,0.2732]
[1742010222801,0.1183506,84493.0,84492.0,0.0332]
[1742010223610,0.1183506,84493.0,84492.0,0.2832]
[1742010223802,0.1183506,84493.0,84492.0,0.0332]
[1742010224197,0.1183506,84493.0,84492.0,0.2932]
[1742010225010,0.1183506,84493.0,84492.0,0.0332]
[1742010225205,0.25925912,84493.0,84492.0,0.0332]
[1742010226610,0.32255912,84493.0,84492.0,0.0332]
[1742010227007,0.32255912,84493.0,84492.0,0.2832]
[1742010227205,0.32255912,84493.0,84492.0,0.0332]
[1742010227411,0.0591763,84492.0,84468.0,0.3608]
[1742010227596,0.118366,84482.0,84477.0,0.1183726]
[1742010227800,0.118366,84482.0,84478.0,0.0303]
[1742010228111,0.118366,84482.0,84478.0,0.1486709]
[1742010228422,0.118366,84482.0,84478.0,0.0303]
[1742010228703,0.118366,84482.0,84479.0,0.1183695]
[1742010228911,0.151666,84482.0,84479.0,0.0331]
[1742010229105,0.1183688,84480.0,84479.0,0.0331]
[1742010231305,0.1183786,84473.0,84472.0,0.0326]
[1742010231499,0.1183786,84473.0,84461.0,0.3608]
[1742010231500,0.1775746,84470.0,84469.0,0.1497842]
[1742010231703,0.1775746,84470.0,84469.0,0.4407842]
[1742010231905,0.1775746,84470.0,84469.0,0.4107842]
[1742010232210,0.1775746,84470.0,84469.0,0.0624]
[1742010232509,0.1775746,84470.0,84469.0,0.2924]
[1742010232709,0.1775746,84470.0,84469.0,0.031]
[1742010232903,0.0591945,84466.0,84462.0,0.0302]
[1742010233101,0.1183912,84464.0,84463.0,0.0307]
[1742010233616,0.1812912,84464.0,84463.0,0.0307]
[1742010233910,0.5420912,84464.0,84463.0,0.0307]
[1742010235013,0.5420912,84464.0,84455.0,0.0902014]
[1742010235014,0.1183982,84459.0,84458.0,0.1183991]
[1742010235317,0.1183996,84458.0,84457.0,0.1506005]
[1742010235612,0.1829996,84458.0,84457.0,0.4106005]
[1742010235920,0.177624,84448.0,84447.0,0.118415]
[1742010236111,0.177624,84448.0,84447.0,0.358415]
[1742010236310,0.177624,84448.0,84447.0,0.598415]
[1742010236701,0.177624,84448.0,84447.0,0.368415]
[1742010237107,0.177624,84448.0,84447.0,0.648415]
[1742010237317,0.0592075,84448.0,84447.0,0.669515]
[1742010237619,0.35246953,84456.0,84455.0,0.1184038]
[1742010237819,0.00017753,84456.0,84455.0,0.6284038]
[1742010238006,0.11857993,84456.0,84455.0,0.3584038]
[1742010238206,0.11857993,84456.0,84455.0,0.6927038]
[1742010238513,0.00017753,84456.0,84455.0,0.6927038]
[1742010238703,0.11857993,84456.0,84455.0,0.1827038]
[1742010238909,0.11857993,84456.0,84455.0,0.7327038]
[1742010239304,0.11857993,84456.0,84455.0,0.1827038]
[1742010239508,0.11857993,84456.0,84455.0,0.4327038]
[1742010239905,0.11857993,84456.0,84455.0,0.1827038]
[1742010240118,0.11857993,84456.0,84455.0,1.0227038]
[1742010240810,0.11857993,84456.0,84455.0,0.7527038]
[1742010241717,0.11857993,84456.0,84455.0,0.1827038]
[1742010241918,0.11857993,84456.0,84455.0,0.6727038]
[1742010242121,0.11857993,84456.0,84455.0,0.4227038]
[1742010242308,0.11857993,84456.0,84455.0,0.6927038]
[1742010242507,0.11857993,84456.0,84455.0,0.1827038]
[1742010242710,0.11857993,84456.0,84455.0,0.7027038]
[1742010243018,0.11857993,84456.0,84455.0,0.75653565]
[1742010243218,0.11857993,84456.0,84455.0,0.94653565]
[1742010243428,0.11857993,84456.0,84455.0,0.97653565]
[1742010243719,0.11857993,84456.0,84455.0,0.98653565]
[1742010243907,0.11857993,84456.0,84455.0,0.73653565]
[1742010244107,0.11857993,84456.0,84455.0,0.72653565]
[1742010244513,0.11857993,84456.0,84455.0,0.99653565]
[1742010244712,3e-08,84456.0,84455.0,0.99653565]
[1742010245014,0.17636338,84465.0,84464.0,0.1183912]
[1742010245215,0.17636338,84465.0,84464.0,1.1991912]
[1742010245416,0.17636338,84465.0,84464.0,1.21302305]
[1742010245718,0.21163606,84471.0,84470.0,0.1183828]
[1742010245919,0.21163606,84471.0,84470.0,0.6383828]
[1742010246322,0.21163606,84471.0,84470.0,0.8783828]
[1742010246511,0.21163606,84471.0,84470.0,0.95591465]
[1742010246913,0.21163606,84471.0,84470.0,0.98591465]
[1742010247223,0.21163606,84471.0,84470.0,0.96591465]
[1742010247417,0.21163606,84471.0,84470.0,0.48591465]
[1742010247618,0.21163606,84471.0,84470.0,0.98591465]
[1742010247815,0.10604652,84472.0,84471.0,0.1183814]
[1742010248015,0.10604652,84472.0,84471.0,1.2907814]
[1742010248212,0.10604652,84472.0,84471.0,1.30461325]
[1742010248406,0.10604652,84472.0,84471.0,1.31461325]
[1742010250318,0.00017753,84479.0,84478.0,0.1183716]
[1742010250511,0.00017753,84479.0,84478.0,1.2691716]
[1742010250830,0.00017753,84479.0,84478.0,1.39848345]
[1742010251123,0.00017753,84479.0,84478.0,1.44208345]
[1742010251525,0.00017753,84479.0,84478.0,1.42208345]
[1742010251721,0.00017753,84479.0,84478.0,0.92208345]
[1742010251923,0.00017753,84479.0,84478.0,1.44208345]
[1742010252317,0.00017753,84479.0,84478.0,1.40208345]
[1742010252512,0.00017753,84479.0,84478.0,1.41208345]
[1742010252718,0.00017753,84479.0,84478.0,1.18208345]
[1742010253013,0.00017753,84479.0,84478.0,1.4082516]
[1742010253914,0.00017753,84479.0,84478.0,1.2927716]
[1742010254116,0.00017753,84479.0,84478.0,1.4282516]
[1742010254316,0.00017753,84479.0,84478.0,1.4182516]
[1742010254923,0.00017753,84479.0,84478.0,1.4282516]
[1742010255226,0.11854773,84479.0,84478.0,0.7827716]
[1742010255427,0.11854773,84479.0,84478.0,0.8127716]
[1742010255918,0.11854773,84479.0,84478.0,0.5427716]
[1742010256116,0.15034773,84479.0,84478.0,0.7618716]
[1742010256430,0.15034773,84479.0,84478.0,1.0318716]
[1742010256730,0.15034773,84479.0,84478.0,0.5118716]
[1742010257031,0.15034773,84479.0,84478.0,1.0318716]
[1742010257224,0.15034773,84479.0,84478.0,1.0640716]
[1742010258029,0.1183814,84471.0,84470.0,0.18983208]
[1742010258225,0.1183814,84471.0,84470.0,0.4075708]
[1742010258725,0.1183814,84471.0,84470.0,0.4275708]
[1742010259030,0.1792814,84471.0,84470.0,0.42967054]
[1742010259427,0.1792814,84471.0,84470.0,0.41967054]
[1742010259822,0.1792814,84471.0,84470.0,0.18967054]
[1742010260027,0.1792814,84471.0,84470.0,0.43967054]
[1742010260226,0.1183828,84470.0,84469.0,0.1183835]
[1742010260631,0.1183828,84470.0,84469.0,0.3983835]
[1742010260632,0.1792828,84470.0,84469.0,0.3983835]